[Event "Early-Titled-Tuesday-Blitz-December-26-2023"]
[Site "Chess.com"]
[Date "2023.12.26"]
[Round "1"]
[White "Aradhya2000"]
[Black "Kotofeyca"]
[Result "1-0"]
[WhiteElo "2712"]
[BlackElo "2425"]
[TimeControl "180+1"]
[EndTime "8:05:44 PST"]
[Termination "Aradhya2000 won by checkmate"]

1. d4 {[%clk 0:03:00.9]} 1... d5 {[%clk 0:02:59.6]} 2. c4 {[%clk 0:03:00.6]}
2... c6 {[%clk 0:02:58.8]} 3. Nf3 {[%clk 0:03:00.4]} 3... Nf6 {[%clk 0:02:58.5]}
4. Nc3 {[%clk 0:03:00.5]} 4... dxc4 {[%clk 0:02:58.2]} 5. e4 {[%clk 0:03:00.4]}
5... b5 {[%clk 0:02:57.6]} 6. Be2 {[%clk 0:03:00.7]} 6... b4 {[%clk 0:02:57.4]}
7. Na4 {[%clk 0:03:00.5]} 7... Nxe4 {[%clk 0:02:57.3]} 8. Bxc4 {[%clk
0:03:00.6]} 8... Nd6 {[%clk 0:02:52.8]} 9. Bb3 {[%clk 0:03:00.7]} 9... a5 {[%clk
0:02:51.9]} 10. d5 {[%clk 0:02:37.2]} 10... cxd5 {[%clk 0:02:29.2]} 11. Bxd5
{[%clk 0:02:37]} 11... Bb7 {[%clk 0:02:27.5]} 12. O-O {[%clk 0:02:37.7]} 12...
e6 {[%clk 0:02:19.2]} 13. Bxb7 {[%clk 0:02:35]} 13... Nxb7 {[%clk 0:02:20.1]}
14. Qe2 {[%clk 0:02:35.2]} 14... Qd6 {[%clk 0:01:55.1]} 15. Bg5 {[%clk
0:01:59.3]} 15... h6 {[%clk 0:01:49.9]} 16. Bh4 {[%clk 0:01:58.4]} 16... Be7
{[%clk 0:01:33.3]} 17. Bxe7 {[%clk 0:01:55.9]} 17... Kxe7 {[%clk 0:01:15.1]} 18.
Rfd1 {[%clk 0:01:51.5]} 18... Qa6 {[%clk 0:01:14.9]} 19. Qe4 {[%clk 0:01:51.4]}
19... Qc6 {[%clk 0:01:02.6]} 20. Qh4+ {[%clk 0:01:46.4]} 20... g5 {[%clk
0:01:01.9]} 21. Nxg5 {[%clk 0:01:46.5]} 21... hxg5 {[%clk 0:00:43.2]} 22. Qxh8
{[%clk 0:01:46.3]} 22... Qxa4 {[%clk 0:00:43.2]} 23. Rac1 {[%clk 0:01:44.8]}
23... Nd6 {[%clk 0:00:18]} 24. Rxd6 {[%clk 0:01:30.2]} 24... Kxd6 {[%clk
0:00:17.2]} 25. Qd8+ {[%clk 0:01:30.1]} 25... Ke5 {[%clk 0:00:16.8]} 26. Qxg5+
{[%clk 0:01:29.8]} 26... Kd6 {[%clk 0:00:16.3]} 27. Qd8+ {[%clk 0:01:27.3]}
27... Ke5 {[%clk 0:00:16.1]} 28. Rc5+ {[%clk 0:01:27.4]} 28... Ke4 {[%clk
0:00:14.3]} 29. f3+ {[%clk 0:01:26.5]} 29... Ke3 {[%clk 0:00:13.3]} 30. Re5+
{[%clk 0:01:25.9]} 30... Kf4 {[%clk 0:00:12.2]} 31. Qd4# {[%clk 0:01:25.2]} 1-0

[Event "Early-Titled-Tuesday-Blitz-December-26-2023"]
[Site "Chess.com"]
[Date "2023.12.26"]
[Round "1"]
[White "patzersame"]
[Black "Alexei_Gubajdullin"]
[Result "0-1"]
[WhiteElo "2354"]
[BlackElo "2662"]
[TimeControl "180+1"]
[EndTime "8:05:51 PST"]
[Termination "Alexei_Gubajdullin won by resignation"]

1. e4 {[%clk 0:03:00.2]} 1... g6 {[%clk 0:02:57.9]} 2. d4 {[%clk 0:03:00.1]}
2... Bg7 {[%clk 0:02:56.6]} 3. Nc3 {[%clk 0:03:00.4]} 3... d6 {[%clk 0:02:56.9]}
4. Be2 {[%clk 0:03:00.7]} 4... a6 {[%clk 0:02:57.2]} 5. a4 {[%clk 0:03:00.4]}
5... Nd7 {[%clk 0:02:57]} 6. Be3 {[%clk 0:02:58.5]} 6... b6 {[%clk 0:02:55]} 7.
f4 {[%clk 0:02:56.6]} 7... Bb7 {[%clk 0:02:54.7]} 8. Bf3 {[%clk 0:02:54.1]} 8...
e5 {[%clk 0:02:49.4]} 9. Nge2 {[%clk 0:02:42.4]} 9... Ngf6 {[%clk 0:02:47.7]}
10. Qd2 {[%clk 0:02:29.4]} 10... O-O {[%clk 0:02:46]} 11. fxe5 {[%clk
0:02:19.5]} 11... dxe5 {[%clk 0:02:45.6]} 12. Bh6 {[%clk 0:02:18.9]} 12... exd4
{[%clk 0:02:44.3]} 13. Nxd4 {[%clk 0:02:15.6]} 13... Ne5 {[%clk 0:02:32.9]} 14.
Bxg7 {[%clk 0:02:09.5]} 14... Kxg7 {[%clk 0:02:32.7]} 15. O-O-O {[%clk
0:02:08.3]} 15... h6 {[%clk 0:02:31.3]} 16. Qf4 {[%clk 0:02:00]} 16... Qe7
{[%clk 0:02:30.5]} 17. h4 {[%clk 0:01:40.6]} 17... Nc4 {[%clk 0:02:28.7]} 18. e5
{[%clk 0:01:33.1]} 18... Nh5 {[%clk 0:01:55.4]} 19. Bxh5 {[%clk 0:01:26.8]}
19... c5 {[%clk 0:01:51.4]} 20. Nb3 {[%clk 0:01:03.4]} 20... Qxe5 {[%clk
0:01:44.4]} 21. Qxe5+ {[%clk 0:00:48.9]} 21... Nxe5 {[%clk 0:01:44]} 22. Bf3
{[%clk 0:00:49.5]} 22... Nxf3 {[%clk 0:01:43.4]} 23. gxf3 {[%clk 0:00:50.1]}
23... Bxf3 {[%clk 0:01:43.2]} 24. Rhf1 {[%clk 0:00:50.8]} 24... Bxd1 {[%clk
0:01:42.4]} 25. Rxd1 {[%clk 0:00:51.5]} 25... Rad8 {[%clk 0:01:42]} 26. Rxd8
{[%clk 0:00:51.2]} 26... Rxd8 {[%clk 0:01:41.7]} 27. a5 {[%clk 0:00:52.1]} 27...
bxa5 {[%clk 0:01:40]} 28. Nxc5 {[%clk 0:00:52.3]} 28... g5 {[%clk 0:01:40.1]}
29. hxg5 {[%clk 0:00:52.3]} 29... hxg5 {[%clk 0:01:40.1]} 30. N3e4 {[%clk
0:00:48.6]} 30... g4 {[%clk 0:01:37.7]} 31. c4 {[%clk 0:00:45.7]} 31... Rd4
{[%clk 0:01:33.7]} 32. b3 {[%clk 0:00:43.8]} 32... a4 {[%clk 0:01:33]} 33. Ng5
{[%clk 0:00:36.7]} 33... Kg6 {[%clk 0:01:17.8]} 34. Nxf7 {[%clk 0:00:32.2]}
34... Kxf7 {[%clk 0:01:16.3]} 0-1

[Event "Early-Titled-Tuesday-Blitz-December-26-2023"]
[Site "Chess.com"]
[Date "2023.12.26"]
[Round "1"]
[White "PawnEatingZombie"]
[Black "ChessRespected"]
[Result "0-1"]
[WhiteElo "2150"]
[BlackElo "2585"]
[TimeControl "180+1"]
[EndTime "8:05:53 PST"]
[Termination "ChessRespected won by resignation"]

1. e4 {[%clk 0:03:00.9]} 1... e5 {[%clk 0:02:59.8]} 2. Nf3 {[%clk 0:03:00.3]}
2... Nc6 {[%clk 0:03:00.1]} 3. d3 {[%clk 0:03:00.2]} 3... Nf6 {[%clk 0:02:58.5]}
4. c3 {[%clk 0:02:59.6]} 4... d5 {[%clk 0:02:54.1]} 5. Nbd2 {[%clk 0:02:58.8]}
5... Bc5 {[%clk 0:02:52.1]} 6. Be2 {[%clk 0:02:57.8]} 6... a5 {[%clk 0:02:51.3]}
7. O-O {[%clk 0:02:57.5]} 7... O-O {[%clk 0:02:51.3]} 8. b3 {[%clk 0:02:56.2]}
8... Re8 {[%clk 0:02:50.7]} 9. Bb2 {[%clk 0:02:49.6]} 9... Ba7 {[%clk
0:02:35.3]} 10. a3 {[%clk 0:02:47.6]} 10... dxe4 {[%clk 0:02:28.1]} 11. Nxe4
{[%clk 0:02:42.7]} 11... Bf5 {[%clk 0:02:20.4]} 12. Qc2 {[%clk 0:02:26.1]} 12...
Nd5 {[%clk 0:02:11.1]} 13. Rfe1 {[%clk 0:02:21.6]} 13... Nf4 {[%clk 0:02:09.8]}
14. Bf1 {[%clk 0:02:20.5]} 14... Bg4 {[%clk 0:02:09.8]} 15. Nfd2 {[%clk
0:02:12]} 15... f5 {[%clk 0:02:09.1]} 16. Ng3 {[%clk 0:02:08.4]} 16... Qh4
{[%clk 0:02:04.8]} 17. Nc4 {[%clk 0:01:44.6]} 17... Rad8 {[%clk 0:01:51.7]} 18.
Ne3 {[%clk 0:01:37.8]} 18... Qg5 {[%clk 0:01:42.6]} 19. Nxg4 {[%clk 0:01:32.6]}
19... Qxg4 {[%clk 0:01:42.8]} 20. b4 {[%clk 0:01:23.2]} 20... h5 {[%clk
0:01:35.4]} 21. h3 {[%clk 0:01:15.6]} 21... Nxh3+ {[%clk 0:01:33]} 22. gxh3
{[%clk 0:01:11.6]} 22... Qxg3+ {[%clk 0:01:33.1]} 23. Bg2 {[%clk 0:01:11.7]}
23... e4 {[%clk 0:01:27.9]} 24. dxe4 {[%clk 0:00:31]} 24... Ne5 {[%clk
0:01:23.6]} 25. Kf1 {[%clk 0:00:30.4]} 25... Qh2 {[%clk 0:01:19.2]} 26. exf5
{[%clk 0:00:20.5]} 26... Nc4 {[%clk 0:01:11.9]} 27. Bc1 {[%clk 0:00:15.4]} 27...
Rxe1+ {[%clk 0:01:02.7]} 0-1

[Event "Early-Titled-Tuesday-Blitz-December-26-2023"]
[Site "Chess.com"]
[Date "2023.12.26"]
[Round "1"]
[White "Klavdia_Nik"]
[Black "anasta10"]
[Result "0-1"]
[WhiteElo "1987"]
[BlackElo "2558"]
[TimeControl "180+1"]
[EndTime "8:05:56 PST"]
[Termination "anasta10 won by resignation"]

1. Nf3 {[%clk 0:02:58.2]} 1... Nf6 {[%clk 0:03:00.1]} 2. c4 {[%clk 0:02:57.2]}
2... g6 {[%clk 0:03:00]} 3. b3 {[%clk 0:02:56.8]} 3... Bg7 {[%clk 0:03:00.7]} 4.
Bb2 {[%clk 0:02:57.7]} 4... O-O {[%clk 0:03:01.4]} 5. g3 {[%clk 0:02:57.9]} 5...
c5 {[%clk 0:03:02.1]} 6. Bg2 {[%clk 0:02:57.9]} 6... Nc6 {[%clk 0:03:02.9]} 7.
O-O {[%clk 0:02:57.9]} 7... d6 {[%clk 0:03:03.6]} 8. d4 {[%clk 0:02:57.9]} 8...
Ne4 {[%clk 0:03:01.7]} 9. e3 {[%clk 0:02:51.9]} 9... a5 {[%clk 0:02:57.7]} 10.
Nc3 {[%clk 0:02:49.2]} 10... Nxc3 {[%clk 0:02:57.8]} 11. Bxc3 {[%clk 0:02:50.1]}
11... a4 {[%clk 0:02:58]} 12. h3 {[%clk 0:02:44.7]} 12... Bd7 {[%clk 0:02:57.6]}
13. Qd2 {[%clk 0:02:42.8]} 13... Qc8 {[%clk 0:02:53.4]} 14. Kh2 {[%clk
0:02:42.7]} 14... Rd8 {[%clk 0:02:53]} 15. d5 {[%clk 0:02:37.7]} 15... Nb4
{[%clk 0:02:41.2]} 16. a3 {[%clk 0:02:28.1]} 16... Na6 {[%clk 0:02:40.5]} 17.
Bxg7 {[%clk 0:02:23]} 17... Kxg7 {[%clk 0:02:41.4]} 18. Qc3+ {[%clk 0:02:12.7]}
18... f6 {[%clk 0:02:41.5]} 19. b4 {[%clk 0:02:09.3]} 19... cxb4 {[%clk
0:02:25.3]} 20. axb4 {[%clk 0:02:10.2]} 20... b5 {[%clk 0:02:26.1]} 21. Nd2
{[%clk 0:01:46.9]} 21... bxc4 {[%clk 0:02:17.4]} 22. Rfc1 {[%clk 0:01:38.9]}
22... Qb7 {[%clk 0:02:03.1]} 23. Nxc4 {[%clk 0:01:26.3]} 23... Qxb4 {[%clk
0:01:52.8]} 24. Na5 {[%clk 0:01:18]} 24... Qxc3 {[%clk 0:01:48]} 25. Rxc3 {[%clk
0:01:18.9]} 25... Nc5 {[%clk 0:01:43.1]} 26. Nc6 {[%clk 0:01:15]} 26... Bxc6
{[%clk 0:01:40.9]} 27. dxc6 {[%clk 0:01:15.9]} 27... Rdc8 {[%clk 0:01:40.8]} 28.
f4 {[%clk 0:01:04.4]} 28... Ra7 {[%clk 0:01:37.1]} 29. Raa3 {[%clk 0:00:58.1]}
29... Kf7 {[%clk 0:01:32.9]} 30. g4 {[%clk 0:00:57.3]} 30... e6 {[%clk
0:01:27.4]} 31. Kg3 {[%clk 0:00:54.3]} 31... Ke7 {[%clk 0:01:25]} 32. Rc4 {[%clk
0:00:49]} 32... Rcc7 {[%clk 0:01:21.5]} 33. Bf3 {[%clk 0:00:46.1]} 33... Ra5
{[%clk 0:01:21.1]} 34. h4 {[%clk 0:00:44.4]} 34... d5 {[%clk 0:01:18]} 35. Rc1
{[%clk 0:00:36.5]} 35... Rxc6 {[%clk 0:01:16.9]} 36. e4 {[%clk 0:00:33]} 36...
Nxe4+ {[%clk 0:01:14.9]} 0-1

[Event "Early-Titled-Tuesday-Blitz-December-26-2023"]
[Site "Chess.com"]
[Date "2023.12.26"]
[Round "1"]
[White "CFalcons8"]
[Black "nindjaxx8"]
[Result "0-1"]
[WhiteElo "2202"]
[BlackElo "2591"]
[TimeControl "180+1"]
[EndTime "8:06:11 PST"]
[Termination "nindjaxx8 won on time"]

1. e4 {[%clk 0:02:57.8]} 1... e6 {[%clk 0:02:59.1]} 2. d4 {[%clk 0:02:56.8]}
2... d5 {[%clk 0:02:58.8]} 3. Nd2 {[%clk 0:02:55.9]} 3... c5 {[%clk 0:02:58.6]}
4. exd5 {[%clk 0:02:56]} 4... Qxd5 {[%clk 0:02:59.5]} 5. Ngf3 {[%clk 0:02:54.4]}
5... cxd4 {[%clk 0:02:58.9]} 6. Bc4 {[%clk 0:02:52.8]} 6... Qd6 {[%clk
0:02:59.2]} 7. O-O {[%clk 0:02:52.1]} 7... Nf6 {[%clk 0:02:59.2]} 8. Nb3 {[%clk
0:02:42.8]} 8... Nc6 {[%clk 0:02:59.4]} 9. Nbxd4 {[%clk 0:02:41.9]} 9... Nxd4
{[%clk 0:03:00.3]} 10. Nxd4 {[%clk 0:02:42.2]} 10... Be7 {[%clk 0:02:59.6]} 11.
c3 {[%clk 0:02:38]} 11... O-O {[%clk 0:02:59.1]} 12. Qf3 {[%clk 0:02:34.3]}
12... Qc7 {[%clk 0:02:55]} 13. Bb3 {[%clk 0:02:31.6]} 13... a5 {[%clk
0:02:54.4]} 14. Bf4 {[%clk 0:02:24.4]} 14... e5 {[%clk 0:02:47.3]} 15. Bg3
{[%clk 0:02:24]} 15... Bg4 {[%clk 0:02:41.3]} 16. Qd3 {[%clk 0:02:10]} 16... Qc5
{[%clk 0:02:31.1]} 17. Nf5 {[%clk 0:01:56]} 17... e4 {[%clk 0:02:25.5]} 18.
Nxe7+ {[%clk 0:01:51.5]} 18... Qxe7 {[%clk 0:02:26.4]} 19. Qe3 {[%clk
0:00:53.3]} 19... Bf5 {[%clk 0:02:21.7]} 20. Rad1 {[%clk 0:00:40.6]} 20... Rfd8
{[%clk 0:02:19.9]} 21. h3 {[%clk 0:00:35.6]} 21... Bg6 {[%clk 0:02:11.7]} 22.
Rd4 {[%clk 0:00:33.6]} 22... Rxd4 {[%clk 0:02:10.3]} 23. Qxd4 {[%clk 0:00:34.5]}
23... Rd8 {[%clk 0:02:09.6]} 24. Qb6 {[%clk 0:00:30]} 24... h6 {[%clk
0:01:59.8]} 25. Qxa5 {[%clk 0:00:27.4]} 25... Rd2 {[%clk 0:01:55.8]} 26. c4
{[%clk 0:00:17.8]} 26... Rxb2 {[%clk 0:01:50.7]} 27. Qc3 {[%clk 0:00:17.5]}
27... Re2 {[%clk 0:01:47.2]} 28. c5 {[%clk 0:00:17.2]} 28... e3 {[%clk
0:01:43.8]} 29. Bd6 {[%clk 0:00:14.6]} 29... exf2+ {[%clk 0:01:35.5]} 30. Rxf2
{[%clk 0:00:14]} 30... Qe4 {[%clk 0:01:32.1]} 31. Rxe2 {[%clk 0:00:11.3]} 31...
Qxe2 {[%clk 0:01:33]} 32. Kh2 {[%clk 0:00:09.8]} 32... Be4 {[%clk 0:01:31.2]}
33. Qg3 {[%clk 0:00:05.4]} 33... Bc6 {[%clk 0:01:26.4]} 34. Be5 {[%clk
0:00:02.6]} 34... Nh5 {[%clk 0:01:25.5]} 35. Qg6 {[%clk 0:00:02.3]} 35... Qxe5+
{[%clk 0:01:24.1]} 0-1

[Event "Early-Titled-Tuesday-Blitz-December-26-2023"]
[Site "Chess.com"]
[Date "2023.12.26"]
[Round "1"]
[White "Pumpkin_in_moonlight"]
[Black "dcremisi"]
[Result "0-1"]
[WhiteElo "2306"]
[BlackElo "2638"]
[TimeControl "180+1"]
[EndTime "8:06:12 PST"]
[Termination "dcremisi won on time"]

1. e4 {[%clk 0:03:00.9]} 1... e6 {[%clk 0:02:58.4]} 2. d4 {[%clk 0:02:58.2]}
2... d5 {[%clk 0:02:58.8]} 3. Nc3 {[%clk 0:02:52.7]} 3... dxe4 {[%clk
0:02:59.3]} 4. Nxe4 {[%clk 0:02:51.2]} 4... Bd7 {[%clk 0:02:59.3]} 5. Nf3 {[%clk
0:02:27.6]} 5... Bc6 {[%clk 0:02:57.1]} 6. Bd3 {[%clk 0:02:26.5]} 6... Nd7
{[%clk 0:02:57.7]} 7. O-O {[%clk 0:02:22.7]} 7... Ngf6 {[%clk 0:02:57.9]} 8. Ng3
{[%clk 0:02:13.3]} 8... Be7 {[%clk 0:02:56.1]} 9. c3 {[%clk 0:02:09.8]} 9... O-O
{[%clk 0:02:56]} 10. Re1 {[%clk 0:02:09.1]} 10... b6 {[%clk 0:02:56]} 11. Ne5
{[%clk 0:01:57.8]} 11... Bb7 {[%clk 0:02:56.3]} 12. Qc2 {[%clk 0:01:49.8]} 12...
g6 {[%clk 0:02:52.1]} 13. Bh6 {[%clk 0:01:47.4]} 13... Re8 {[%clk 0:02:52.4]}
14. Rad1 {[%clk 0:01:45.9]} 14... Qc8 {[%clk 0:02:51.2]} 15. h4 {[%clk
0:01:27.4]} 15... Nxe5 {[%clk 0:02:49.4]} 16. dxe5 {[%clk 0:01:25.3]} 16... Ng4
{[%clk 0:02:49.6]} 17. Bg5 {[%clk 0:01:21.7]} 17... Bc5 {[%clk 0:02:34.9]} 18.
Rd2 {[%clk 0:01:00.3]} 18... h6 {[%clk 0:02:29.7]} 19. Bf4 {[%clk 0:00:55.1]}
19... Kg7 {[%clk 0:02:26.8]} 20. Qd1 {[%clk 0:00:42.9]} 20... h5 {[%clk
0:02:25.1]} 21. Ne4 {[%clk 0:00:35.9]} 21... Bxe4 {[%clk 0:02:21.6]} 22. Bxe4
{[%clk 0:00:36.2]} 22... Rb8 {[%clk 0:02:19.6]} 23. b4 {[%clk 0:00:36.4]} 23...
Be7 {[%clk 0:02:18.8]} 24. Bc6 {[%clk 0:00:30.4]} 24... Rd8 {[%clk 0:02:17.6]}
25. f3 {[%clk 0:00:26.6]} 25... Nh6 {[%clk 0:02:16.8]} 26. Bg5 {[%clk
0:00:19.6]} 26... Bxg5 {[%clk 0:02:12.9]} 27. hxg5 {[%clk 0:00:20]} 27... Nf5
{[%clk 0:02:11.5]} 28. b5 {[%clk 0:00:20.5]} 28... Rxd2 {[%clk 0:02:08.7]} 29.
Qxd2 {[%clk 0:00:20.6]} 29... Qd8 {[%clk 0:02:09.4]} 30. Rd1 {[%clk 0:00:19]}
30... Qe7 {[%clk 0:02:05.9]} 31. f4 {[%clk 0:00:18.1]} 31... Qc5+ {[%clk
0:02:05.4]} 32. Kh2 {[%clk 0:00:17.3]} 32... h4 {[%clk 0:02:01.7]} 33. a4 {[%clk
0:00:16.6]} 33... Ng3 {[%clk 0:02:01.8]} 34. Qd4 {[%clk 0:00:16.1]} 34... Qa3
{[%clk 0:01:56.6]} 35. Rd3 {[%clk 0:00:11.4]} 35... Qc1 {[%clk 0:01:54.1]} 36.
Rd1 {[%clk 0:00:11.3]} 36... Qc2 {[%clk 0:01:53.7]} 37. Rd2 {[%clk 0:00:11.5]}
37... Qb3 {[%clk 0:01:50.2]} 38. Rd1 {[%clk 0:00:07.9]} 38... Nf5 {[%clk
0:01:50.4]} 39. Qd3 {[%clk 0:00:05.8]} 39... h3 {[%clk 0:01:49.8]} 40. c4 {[%clk
0:00:05.6]} 40... Qb2 {[%clk 0:01:48.2]} 41. Qd2 {[%clk 0:00:04.8]} 41... Qb3
{[%clk 0:01:44.1]} 42. Qd3 {[%clk 0:00:05.1]} 42... Qxa4 {[%clk 0:01:44.5]} 43.
g4 {[%clk 0:00:04.8]} 43... Nh4 {[%clk 0:01:40.9]} 44. Qg3 {[%clk 0:00:03.4]}
44... Qa2+ {[%clk 0:01:39.4]} 45. Kh1 {[%clk 0:00:01.8]} 45... Rh8 {[%clk
0:01:35.9]} 0-1

[Event "Early-Titled-Tuesday-Blitz-December-26-2023"]
[Site "Chess.com"]
[Date "2023.12.26"]
[Round "1"]
[White "GoValya"]
[Black "Lady_Nika"]
[Result "1/2-1/2"]
[WhiteElo "2274"]
[BlackElo "2609"]
[TimeControl "180+1"]
[EndTime "8:06:17 PST"]
[Termination "Game drawn by repetition"]

1. d4 {[%clk 0:02:56.2]} 1... d5 {[%clk 0:02:29.2]} 2. c4 {[%clk 0:02:55.8]}
2... e6 {[%clk 0:02:28.5]} 3. Nf3 {[%clk 0:02:55.2]} 3... f5 {[%clk 0:02:26.7]}
4. g3 {[%clk 0:02:51.2]} 4... Nf6 {[%clk 0:02:26.6]} 5. Bg2 {[%clk 0:02:51.5]}
5... c6 {[%clk 0:02:25.1]} 6. O-O {[%clk 0:02:51.4]} 6... Bd6 {[%clk 0:02:24.9]}
7. b3 {[%clk 0:02:51.6]} 7... Qe7 {[%clk 0:02:24.3]} 8. a4 {[%clk 0:02:50.8]}
8... Nbd7 {[%clk 0:02:23.3]} 9. Ba3 {[%clk 0:02:50.1]} 9... O-O {[%clk
0:02:23.4]} 10. Bxd6 {[%clk 0:02:47.8]} 10... Qxd6 {[%clk 0:02:24.3]} 11. Nc3
{[%clk 0:02:46]} 11... Ne4 {[%clk 0:02:24.1]} 12. Qc2 {[%clk 0:02:40.3]} 12...
b6 {[%clk 0:02:22.5]} 13. a5 {[%clk 0:02:21.9]} 13... Ba6 {[%clk 0:02:22.1]} 14.
axb6 {[%clk 0:01:45.4]} 14... axb6 {[%clk 0:02:23]} 15. Ra4 {[%clk 0:01:45.2]}
15... b5 {[%clk 0:02:20.9]} 16. cxb5 {[%clk 0:01:40.8]} 16... cxb5 {[%clk
0:02:20.1]} 17. Rxa6 {[%clk 0:01:14.4]} 17... Qxa6 {[%clk 0:02:16.3]} 18. Nxe4
{[%clk 0:01:12.4]} 18... fxe4 {[%clk 0:02:16.2]} 19. Ng5 {[%clk 0:01:11]} 19...
Rac8 {[%clk 0:02:14.7]} 20. Qd2 {[%clk 0:01:05]} 20... h6 {[%clk 0:02:13.8]} 21.
Nh3 {[%clk 0:01:04.8]} 21... Rc6 {[%clk 0:02:11.1]} 22. Nf4 {[%clk 0:00:59.6]}
22... Rfc8 {[%clk 0:02:09.9]} 23. Bh3 {[%clk 0:00:54.8]} 23... Nf8 {[%clk
0:02:08.7]} 24. Qb4 {[%clk 0:00:43]} 24... Qa2 {[%clk 0:02:03.2]} 25. Qxb5
{[%clk 0:00:32.1]} 25... Rc1 {[%clk 0:02:01.9]} 26. Nxe6 {[%clk 0:00:20.9]}
26... Rxf1+ {[%clk 0:01:59.5]} 27. Kxf1 {[%clk 0:00:21.1]} 27... Qb1+ {[%clk
0:01:54.5]} 28. Kg2 {[%clk 0:00:21.2]} 28... Rc1 {[%clk 0:01:49.5]} 29. Bf5
{[%clk 0:00:21]} 29... Rg1+ {[%clk 0:01:47.6]} 30. Kh3 {[%clk 0:00:21]} 30...
Qf1+ {[%clk 0:01:47.4]} 31. Kg4 {[%clk 0:00:16.4]} 31... Qxf2 {[%clk 0:01:45.3]}
32. Nxf8 {[%clk 0:00:14]} 32... h5+ {[%clk 0:01:44.1]} 33. Kg5 {[%clk
0:00:11.9]} 33... Qe3+ {[%clk 0:01:43.2]} 34. Kxh5 {[%clk 0:00:11.4]} 34... Qh6+
{[%clk 0:01:37.9]} 35. Kg4 {[%clk 0:00:11.5]} 35... Kxf8 {[%clk 0:01:27.8]} 36.
Qb8+ {[%clk 0:00:11.2]} 36... Kf7 {[%clk 0:01:28.1]} 37. Qc7+ {[%clk 0:00:08.7]}
37... Kf8 {[%clk 0:01:27.9]} 38. Qd8+ {[%clk 0:00:08.7]} 38... Kf7 {[%clk
0:01:27.7]} 39. Qd7+ {[%clk 0:00:09]} 39... Kf8 {[%clk 0:01:25.7]} 40. Qd8+
{[%clk 0:00:07.6]} 40... Kf7 {[%clk 0:01:25.9]} 41. Qd7+ {[%clk 0:00:07.2]}
41... Kf8 {[%clk 0:01:25.1]} 42. Qd8+ {[%clk 0:00:07.3]} 1/2-1/2

[Event "Early-Titled-Tuesday-Blitz-December-26-2023"]
[Site "Chess.com"]
[Date "2023.12.26"]
[Round "1"]
[White "seopie"]
[Black "tantaan"]
[Result "1-0"]
[WhiteElo "2819"]
[BlackElo "2480"]
[TimeControl "180+1"]
[EndTime "8:06:19 PST"]
[Termination "seopie won by resignation"]

1. d4 {[%clk 0:03:00.9]} 1... Nf6 {[%clk 0:02:59.1]} 2. c4 {[%clk 0:03:01]} 2...
e6 {[%clk 0:02:59.2]} 3. Nc3 {[%clk 0:02:57.9]} 3... Bb4 {[%clk 0:02:59.4]} 4.
e3 {[%clk 0:02:55.3]} 4... O-O {[%clk 0:02:58.1]} 5. Bd3 {[%clk 0:02:54.1]} 5...
c5 {[%clk 0:02:57.7]} 6. Ne2 {[%clk 0:02:50]} 6... d5 {[%clk 0:02:56.2]} 7. cxd5
{[%clk 0:02:48.4]} 7... cxd4 {[%clk 0:02:56]} 8. exd4 {[%clk 0:02:43.5]} 8...
Nxd5 {[%clk 0:02:48.1]} 9. O-O {[%clk 0:02:43.8]} 9... Nc6 {[%clk 0:02:42.9]}
10. Qc2 {[%clk 0:02:41.9]} 10... h6 {[%clk 0:02:42.5]} 11. a3 {[%clk 0:02:39.6]}
11... Be7 {[%clk 0:02:42.1]} 12. Rd1 {[%clk 0:02:38.5]} 12... Bd7 {[%clk
0:02:38.2]} 13. Be4 {[%clk 0:02:36.9]} 13... Nf6 {[%clk 0:02:30.7]} 14. Bf3
{[%clk 0:02:31.8]} 14... Rc8 {[%clk 0:02:29.6]} 15. Nf4 {[%clk 0:02:18.7]} 15...
Bd6 {[%clk 0:02:27.7]} 16. d5 {[%clk 0:02:15.7]} 16... exd5 {[%clk 0:02:20]} 17.
Nfxd5 {[%clk 0:02:14.5]} 17... Ne5 {[%clk 0:02:20]} 18. Be2 {[%clk 0:02:03.2]}
18... Nxd5 {[%clk 0:02:15.6]} 19. Rxd5 {[%clk 0:02:02.8]} 19... Bc6 {[%clk
0:02:15.9]} 20. Rd1 {[%clk 0:02:02.1]} 20... Qe7 {[%clk 0:01:57.9]} 21. Bf4
{[%clk 0:01:57.3]} 21... Rfd8 {[%clk 0:01:53.2]} 22. Bg3 {[%clk 0:01:55.2]}
22... a6 {[%clk 0:01:45.8]} 23. Re1 {[%clk 0:01:53]} 23... Qf6 {[%clk
0:01:42.3]} 24. Rad1 {[%clk 0:01:51]} 24... g6 {[%clk 0:01:33.6]} 25. Ne4 {[%clk
0:01:47.7]} 25... Bxe4 {[%clk 0:01:28.5]} 26. Qxe4 {[%clk 0:01:47.2]} 26... Re8
{[%clk 0:01:28.5]} 27. Qxb7 {[%clk 0:01:41.4]} 27... h5 {[%clk 0:01:14.6]} 28.
Qxa6 {[%clk 0:01:32.3]} 28... Rc6 {[%clk 0:01:14.8]} 29. Qa4 {[%clk 0:01:31.1]}
29... Rec8 {[%clk 0:00:32.8]} 30. Bf1 {[%clk 0:01:28]} 30... Ng4 {[%clk
0:00:29]} 31. Rxd6 {[%clk 0:01:16.9]} 31... Rxd6 {[%clk 0:00:28.4]} 32. h3
{[%clk 0:01:15.4]} 32... h4 {[%clk 0:00:19.9]} 33. Qxg4 {[%clk 0:01:13.2]} 33...
hxg3 {[%clk 0:00:19.8]} 34. Qxc8+ {[%clk 0:01:12.4]} 34... Kg7 {[%clk
0:00:19.8]} 35. fxg3 {[%clk 0:01:12.6]} 35... Rd2 {[%clk 0:00:20.1]} 36. Qc3
{[%clk 0:01:10.5]} 1-0